fUST/lending_fUST_20260115
["ID","MTS","AMOUNT","RATE_DAILY","PERIOD"]
[401925860,1768406433170,633.0681,0.00027397,120]
[401925878,1768406640264,10000.0,9.45e-05,2]
[401925879,1768406646444,0.01,9.45e-05,2]
[401925880,1768406646471,9999.99,9.45e-05,2]
[401925881,1768406653886,0.02,9.45e-05,2]
[401925882,1768406653921,2489.42,9.45e-05,2]
[401925897,1768406686624,2000.0,0.000273,120]
[401925900,1768406736110,500.0,0.00027397,120]
[401925901,1768406748384,500.0,0.00027397,120]
[401925902,1768406759869,500.0,0.00027397,120]
[401925903,1768406762045,6957.0,9.45e-05,2]
[401925905,1768406822335,-300.0,0.00012411,2]
[401925906,1768406822646,-194.27699922,0.00012412,2]
[401925907,1768406822681,-80.7204354,0.00012412,2]
[401925908,1768406822703,-595.0,0.00012412,2]
[401925909,1768406822725,-300.0,0.00012412,2]
[401925910,1768406822747,-1200.0,0.00012412,2]
[401925911,1768406823062,300.0,0.00012412,2]
[401925912,1768406882391,300.0,0.00012412,2]
[401925913,1768406943154,300.0,0.00012412,2]
[401925914,1768406998049,11210.72300078,0.00012314,2]
[401925915,1768406998072,219.2795646,0.00012314,2]
[401925954,1768407032527,-300.0,0.00012313,2]
[401925956,1768407032536,-300.0,0.00012313,2]
[401925958,1768407032545,-594.0,0.00012313,2]
[401925960,1768407032555,-1200.0,0.00012313,2]
[401925962,1768407032564,-4392.71,0.00012314,2]
[401925964,1768407032577,-465.60265351,0.00012314,2]
[401925967,1768407032591,-1114.51852297,0.00012314,2]
[401925969,1768407032603,-3621.50184145,0.00012314,2]
[401925971,1768407032614,-3382.76677879,0.00012314,2]
[401925972,1768407032623,-272.67,0.00012413,2]
[401925975,1768407032632,-300.0,0.0001266,2]
[401925978,1768407032641,-300.0,0.0001266,2]
[401925981,1768407032650,-300.0,0.0001266,2]
[401925983,1768407032659,-300.0,0.0001266,2]
[401925986,1768407032669,-300.0,0.0001266,2]
[401925988,1768407032679,-300.0,0.0001266,2]
[401925990,1768407032688,-300.0,0.0001266,2]
[401925992,1768407032698,-300.0,0.0001266,2]
[401925994,1768407032707,-300.0,0.0001266,2]
[401925996,1768407032717,-300.0,0.0001266,2]
[401925998,1768407032726,-300.0,0.0001266,2]
[401926000,1768407032736,-300.0,0.0001266,2]
[401926001,1768407032745,-300.0,0.0001266,2]
[401926002,1768407032754,-300.0,0.0001266,2]
[401926003,1768407032764,-300.0,0.0001266,2]
[401926004,1768407032773,-600.0,0.0001266,2]
[401926005,1768407032783,-500.0,0.00013273,2]
[401926006,1768407032793,-420.0,0.00013513,2]
[401926007,1768407032803,-500.0,0.00013619,2]
[401926008,1768407032816,-500.0,0.00013698,2]
[401926009,1768407032826,-500.0,0.00013698,2]
[401926010,1768407032835,-500.0,0.00013698,2]
[401926011,1768407032844,-500.0,0.00013698,2]
[401926012,1768407032854,-500.0,0.00013698,2]
[401926013,1768407032863,-172.393759,0.00013699,2]
[401926014,1768407032874,-500.0,0.00013699,2]
[401926015,1768407032883,-500.0,0.00013699,2]
[401926016,1768407032893,-313.1949472,0.00013699,2]
[401926017,1768407032902,-500.0,0.00013699,2]
[401926018,1768407032913,-500.0,0.00013699,2]
[401926019,1768407032923,-500.97638911,0.00013699,2]
[401926020,1768407032933,-500.0,0.00013699,2]
[401926021,1768407032945,-500.0,0.00013699,2]
[401926022,1768407032954,-393.60441612,0.00013699,2]
[401926023,1768407032963,-500.0,0.00013699,2]
[401926024,1768407032972,-500.0,0.00013699,2]
[401926025,1768407032982,-500.0,0.00013699,2]
[401926026,1768407032992,-1000.0,0.00013821,2]
[401926027,1768407033002,-720.0,0.00013926,2]
[401926028,1768407033011,-500.0,0.00014247,2]
[401926029,1768407033021,-500.0,0.00014247,2]
[401926030,1768407033031,-500.0,0.00014247,2]
[401926031,1768407033041,-305.81073116,0.00014247,2]
[401926032,1768407033050,-500.8839523,0.00014247,2]
[401926033,1768407033060,-500.0,0.00014247,2]
[401926034,1768407033069,-500.0,0.00014247,2]
[401926035,1768407033079,-324.49697285,0.00014412,2]
[401926036,1768407033088,-587.0,0.00014829,2]
[401926037,1768407033098,-201.70765504,0.00014989,2]
[401926038,1768407033272,-292.75616697,0.00014989,2]
[401926039,1768407033283,-100000.0,0.0001499,2]
[401926040,1768407033297,-5000.0,0.00015278,2]
[401926041,1768407033307,-864.0,0.00015319,2]
[401926042,1768407033317,-823.0,0.00016274,2]
[401926043,1768407033327,-373.99651109,0.00016412,2]
[401926044,1768407033337,-605.4793509,0.00016692,2]
[401926045,1768407033346,-162.489039,0.00016825,2]
[401926046,1768407033356,-1000.0,0.00016851,2]
[401926047,1768407033366,-1041.66666667,0.00017378,2]
[401926048,1768407033376,-467.0,0.00017476,2]
[401926049,1768407033386,-1152.0,0.0001786,2]
[401926050,1768407033396,-5000.0,0.00018333,2]
[401926051,1768407033406,-423.49604932,0.00018412,2]
[401926052,1768407033417,-1000.0,0.00018536,2]
[401926053,1768407033427,-244.0,0.00018536,2]
[401926054,1768407033437,-467.0,0.00018841,2]
[401926055,1768407033447,-158.98901489,0.00019178,2]
[401926056,1768407033459,-290.0,0.00019178,2]
[401926057,1768407033470,-167.8,0.000192,2]
[401926058,1768407033479,-2221.12,0.000192,2]
[401926059,1768407033489,-152.81,0.000192,2]
[401926060,1768407033498,-151.75,0.000192,2]
[401926061,1768407033508,-556.0,0.000196,2]
[401926062,1768407033517,-5000.0,0.00019861,2]
[401926063,1768407033527,-467.0,0.00020207,2]
[401926064,1768407033536,-1000.0,0.00020389,2]
[401926065,1768407033546,-492.0,0.00020389,2]
[401926066,1768407033555,-472.99558755,0.00020412,2]
[401926067,1768407033565,-730.58587499,0.00020493,2]
[401926068,1768407033575,-522.82328711,0.00020499,2]
[401926069,1768407033584,-172.393759,0.00020548,2]
[401926070,1768407033594,-3000.0,0.00021,2]
[401926071,1768407033603,-500.0,0.00021,2]
[401926072,1768407033612,-3335.708828,0.0002101,2]
[401926073,1768407033622,-467.0,0.00021572,2]
[401926074,1768407033632,-1420.17,0.00022,7]
[401926075,1768407033641,-522.49512578,0.00022412,2]
[401926076,1768407033651,-1000.0,0.00022428,10]
[401926077,1768407033660,-791.0,0.00022428,10]
[401926078,1768407033670,-151.75,0.000225,7]
[401926079,1768407033679,-2091.29314843,0.00022776,2]
[401926080,1768407033688,-2221.12,0.000229,14]
[401926081,1768407033698,-152.81,0.000229,7]
[401926082,1768407033707,-467.0,0.00022937,2]
[401926083,1768407033717,-500.0,0.00023137,2]
[401926084,1768407033727,-500.0,0.00023206,2]
[401926085,1768407033737,-500.0,0.00023225,2]
[401926086,1768407033746,-500.0,0.00023293,2]
[401926087,1768407033756,-500.0,0.00023305,2]
[401926088,1768407033765,-500.0,0.00023309,2]
[401926089,1768407033774,-500.0,0.00023314,2]
[401926090,1768407033785,-500.0,0.00023321,2]
[401926091,1768407033794,-500.0,0.0002347,2]
[401926092,1768407033804,-500.0,0.00023487,2]
[401926093,1768407033813,-500.0,0.0002356,2]
[401926094,1768407033822,-500.0,0.00023613,2]
[401926095,1768407033831,-500.0,0.00023628,2]
[401926096,1768407033841,-500.0,0.00023917,2]
[401926097,1768407033850,-500.0,0.00023932,2]
[401926098,1768407033859,-500.0,0.00023952,2]
[401926099,1768407033869,-500.0,0.00023959,2]
[401926100,1768407033878,-500.0,0.00024043,2]
[401926101,1768407033887,-500.0,0.00024208,2]
[401926102,1768407033896,-901.46550708,0.0002424,2]
[401926103,1768407033906,-467.0,0.00024302,2]
[401926104,1768407033915,-243.0,0.00024356,13]
[401926105,1768407033924,-571.99466401,0.00024412,2]
[401926106,1768407033939,-500.0,0.00024501,2]
[401926107,1768407033948,-591.12357233,0.00024504,2]
[401926108,1768407033958,-500.0,0.00024553,2]
[401926109,1768407033967,-332.3523726,0.00024658,2]
[401926110,1768407033976,-1000.0,0.00024671,10]
[401926111,1768407033985,-1000.0,0.00024671,10]
[401926112,1768407033995,-500.0,0.00024713,2]
[401926113,1768407034004,-4705.4347692,0.00024768,2]
[401926114,1768407034013,-500.0,0.00024773,2]
[401926115,1768407034024,-40447.2476035,0.00024801,2]
[401926116,1768407034033,-330.0,0.00024836,2]
[401926117,1768407034043,-3444.48283271,0.00024837,7]
[401926118,1768407034053,-594.41498494,0.00024845,2]
[401926119,1768407034066,-72805.7066108,0.000249,2]
[401926120,1768407034075,-15524.79,0.000249,2]
[401926121,1768407034085,-500.0,0.00024949,2]
[401926122,1768407034095,-500.0,0.00025,3]
[401926123,1768407034104,-1420.17,0.00025,7]
[401926124,1768407034114,-500.0,0.00025004,7]
[401926125,1768407034124,-715.0,0.00025027,2]
[401926126,1768407034134,-197.967,0.00025027,2]
[401926127,1768407034144,-430.0,0.00025027,2]
[401926128,1768407034153,-417.0,0.00025027,2]
[401926129,1768407034163,-4700.70417439,0.00025054,2]
[401926130,1768407034173,-500.0,0.00025061,7]
[401926131,1768407034182,-681.109429,0.00025061,30]
[401926132,1768407034192,-500.0,0.000251,7]
[401926133,1768407034203,-747.20552054,0.00025114,7]
[401926134,1768407034212,-2933.95183334,0.00025252,2]
[401926135,1768407034222,-696.205724,0.00025252,30]
[401926136,1768407034232,-151.75,0.000253,7]
[401926137,1768407034243,-195.0,0.00025452,16]
[401926138,1768407034253,-2919.42115647,0.0002551,2]
[401926139,1768407034263,-2933.95183334,0.00025653,2]
[401926140,1768407034272,-467.0,0.00025668,2]
[401926141,1768407034282,-2221.12,0.000257,14]
[401926142,1768407034294,-152.81,0.000257,7]
[401926143,1768407034304,-157.32070626,0.00025714,5]
[401926144,1768407034315,-160.0,0.00025761,3]
[401926145,1768407034325,-5000.0,0.00025768,2]
[401926146,1768407034335,-15524.79,0.000259,2]
[401926147,1768407034344,-2933.95183334,0.00025916,2]
[401926148,1768407034355,-1024.9030344,0.00026,2]
[401926149,1768407034365,-7280.57066108,0.00026017,2]
[401926150,1768407034376,-4466.61,0.00026027,2]
[401926151,1768407034385,-151.0,0.000262,16]
[401926152,1768407034395,-1420.17,0.000262,7]
[401926153,1768407034404,-1041.66666667,0.000262,7]
[401926154,1768407034415,-2933.95183334,0.00026232,2]
[401926155,1768407034427,-2933.95183334,0.0002638,2]
[401926156,1768407034437,-621.49420225,0.00026412,2]
[401926157,1768407034446,-151.75,0.000265,7]
[401926158,1768407034456,-196.0,0.00026548,21]
[401926159,1768407034466,-800.0,0.00026608,2]
[401926160,1768407034475,-2933.95183334,0.00026715,2]
[401926161,1768407034485,-5000.0,0.00026768,2]
[401926162,1768407034495,-15524.79,0.000268,2]
[401926163,1768407034504,-152.81,0.000269,7]
[401926164,1768407034514,-248.981,0.0002698,15]
[401926165,1768407034524,-500.0,0.00027,3]
[401926166,1768407034534,-2221.12,0.00027,14]
[401926167,1768407034544,-1020.0,0.00027,2]
[401926168,1768407034554,-212.0,0.00027,7]
[401926169,1768407034563,-467.0,0.00027033,5]
[401926170,1768407034573,-2933.95183334,0.00027035,2]
[401926171,1768407034582,-7280.57066108,0.00027085,2]
[401926172,1768407034592,-274.294,0.00027095,2]
[401926173,1768407034601,-195.26683562,0.00027095,2]
[401926189,1768407038611,-500.0,0.00012412,2]
[401926191,1768407038621,-500.0,0.00012412,2]
[401926193,1768407038631,-500.0,0.00012412,2]
[401926195,1768407038641,-265.33413927,0.00012412,2]
[401926197,1768407038651,-500.0,0.00012412,2]
[401926198,1768407038660,-500.0,0.00012412,2]
[401926200,1768407038670,-300.41025772,0.00012412,2]
[401926201,1768407038682,-199.58974228,0.00012412,2]
[401926202,1768407038692,-500.0,0.00012412,2]
[401926203,1768407038702,-500.0,0.00012412,2]
[401926204,1768407038712,-500.0,0.00012412,2]
[401926205,1768407038722,-500.0,0.00012412,2]
[401926206,1768407038732,-500.0,0.00012412,2]
[401926207,1768407038742,-500.0,0.00012412,2]
[401926208,1768407038752,-500.0,0.00012412,2]
[401926209,1768407038762,-526.46479924,0.00012412,2]
[401926210,1768407038771,-500.0,0.00012412,2]
[401926211,1768407038781,-500.0,0.00012412,2]
[401926212,1768407038791,-500.0,0.00012412,2]
[401926213,1768407038800,-500.0,0.00012412,2]
[401926214,1768407038810,-500.0,0.00012412,2]
[401926215,1768407038819,-500.0,0.00012412,2]
[401926216,1768407038829,-500.0,0.00012412,2]
[401926218,1768407038838,-500.0,0.00012412,2]
[401926220,1768407038847,-500.0,0.00012412,2]
[401926222,1768407038857,-500.0,0.00012412,2]
[401926224,1768407038866,-500.0,0.00012412,2]
[401926226,1768407038876,-4.82916438,0.00027095,2]
[401926228,1768407038885,-261.564,0.00027095,2]
[401926230,1768407038895,-267.537,0.00027095,2]
[401926231,1768407038904,-1367.0,0.00027095,2]
[401926232,1768407038914,-2147.0,0.00027095,2]
[401926233,1768407038924,-629.0,0.00027095,2]
[401926234,1768407038934,-1420.17,0.000271,7]
[401926235,1768407038944,-160.0,0.00027109,4]
[401926236,1768407038953,-1000.0,0.00027138,30]
[401926237,1768407039224,-1000.0,0.00027138,30]
[401926238,1768407039247,-579.0,0.00027138,30]
[401926239,1768407039258,-2933.95183334,0.00027241,2]
[401926240,1768407039267,-183.47415853,0.00027319,2]
[401926241,1768407039277,-733.16273748,0.00027319,2]
[401926242,1768407039287,-430.13074588,0.00027319,2]
[401926243,1768407039297,-1718.80246053,0.00027319,2]
[401926244,1768407039314,-779.82179719,0.00027319,2]
[401926245,1768407039324,-3116.16790156,0.00027319,2]
[401926246,1768407039333,-687.78506123,0.00027319,2]
[401926247,1768407039343,-2748.38910467,0.00027319,2]
[401926248,1768407039354,-1740.51431,0.00027323,30]
[401926249,1768407039363,-3000.0,0.00027396,14]
[401926250,1768407039373,-264.98169148,0.00027397,3]
[401926251,1768407039382,-157.45506808,0.00027397,5]
[401926252,1768407039391,-515.68473116,0.00027397,5]
[401926253,1768407039400,-2005.50432878,0.000274,2]
[401926254,1768407039409,-2829.23463482,0.00027453,19]
[401926255,1768407039420,-238.8017989,0.00027507,30]
[401926256,1768407039429,-2933.95183334,0.00027585,2]
[401926257,1768407039439,-234.0,0.00027644,25]
[401926258,1768407039448,-373.680113,0.00027657,120]
[401926259,1768407039457,-224.208068,0.00027657,30]
[401926260,1768407039467,-5000.0,0.0002767,4]
[401926261,1768407039476,-4466.61,0.00027671,4]
[401926262,1768407039485,-212.0,0.00027671,14]
[401926263,1768407039494,-5000.0,0.00027724,26]
[401926264,1768407039503,-7280.57066108,0.00027758,2]
[401926265,1768407039513,-5000.0,0.00027768,2]
[401926266,1768407039523,-151.75,0.000278,7]
[401926267,1768407039532,-5117.4317659,0.00027827,2]
[401926268,1768407039541,-15524.79,0.000279,2]
[401926269,1768407039550,-2933.95183334,0.00027925,2]
[401926270,1768407039560,-250.0,0.00027945,5]
[401926271,1768407039569,-250.0,0.00027945,5]
[401926272,1768407039578,-1777.8011286,0.00027947,2]
[401926273,1768407039588,-166.1518984,0.00027947,2]
[401926274,1768407039597,-800.0,0.00027963,2]
[401926275,1768407039607,-1618.31779113,0.00028,7]
[401926276,1768407039617,-1020.0,0.00028,2]
[401926277,1768407039627,-2933.95183334,0.00028014,2]
[401926278,1768407039639,-715.0,0.00028027,2]
[401926279,1768407039649,-178.0,0.00028027,2]
[401926280,1768407039659,-417.0,0.00028027,2]
[401926281,1768407039670,-417.0,0.00028027,2]
[401926282,1768407039679,-334.26738813,0.00028034,22]
[401926283,1768407039688,-183.0,0.00028058,120]
[401926284,1768407039698,-166.0,0.00028058,120]
[401926285,1768407039707,-156.113255,0.00028058,120]
[401926286,1768407039717,-640.0,0.0002806,120]
[401926287,1768407039727,-182.0,0.0002806,120]
[401926288,1768407039737,-737.0,0.00028062,120]
[401926289,1768407039747,-182.0,0.00028062,120]
[401926290,1768407039757,-306.0,0.0002808,30]
[401926291,1768407039767,-151.0,0.000281,13]
[401926292,1768407039777,-5000.0,0.00028217,14]
[401926293,1768407039787,-3000.0,0.00028218,14]
[401926294,1768407039797,-5000.0,0.00028218,28]
[401926295,1768407039806,-5000.0,0.00028224,21]
[401926296,1768407039815,-589.69745305,0.00028264,5]
[401926297,1768407039824,-152.81,0.000283,7]
[401926298,1768407039834,-194.2006467,0.00028306,30]
[401926299,1768407039843,-387.9259802,0.00028306,30]
[401926300,1768407039853,-898.755492,0.00028306,120]
[401926301,1768407039863,-539.253295,0.00028306,30]
[401926302,1768407039872,-194.2006467,0.00028306,30]
[401926303,1768407039882,-467.0,0.00028398,5]
[401926304,1768407039891,-5000.0,0.000284,2]
[401926305,1768407039900,-1869.1835136,0.000284,14]
[401926306,1768407039916,-351.9364864,0.000284,14]
[401926307,1768407039926,-1420.17,0.000284,7]
[401926308,1768407039935,-778.0,0.000284,2]
[401926309,1768407039945,-670.99374048,0.00028412,2]
[401926310,1768407039955,-2933.95183339,0.00028413,2]
[401926311,1768407039964,-171.0,0.00028425,120]
[401926312,1768407039975,-167.0,0.00028425,120]
[401926313,1768407039985,-5000.0,0.00028436,30]
[401926314,1768407039994,-160.0,0.00028457,5]
[401926315,1768407040003,-7280.57066108,0.0002848,2]
[401926316,1768407040012,-7280.57066108,0.0002849,2]
[401926317,1768407040021,-5000.0,0.00028491,15]
[401926318,1768407040030,-5000.0,0.00028492,2]
[401926319,1768407040040,-5000.0,0.00028492,5]
[401926320,1768407040049,-168.3888056,0.00028492,5]
[401926321,1768407040059,-174.61919141,0.00028492,5]
[401926322,1768407040068,-250.0,0.00028492,5]
[401926323,1768407040078,-181.08010149,0.00028492,5]
[401926324,1768407040087,-250.0,0.00028492,5]
[401926325,1768407040097,-187.78006525,0.00028492,5]
[401926326,1768407040106,-294.03317915,0.00028492,5]
[401926327,1768407040115,-194.72792766,0.00028492,5]
[401926328,1768407040124,-201.93286099,0.00028492,5]
[401926329,1768407040134,-209.40437684,0.00028492,5]
[401926330,1768407040143,-217.15233878,0.00028492,5]
[401926331,1768407040152,-225.18697532,0.00028492,5]
[401926332,1768407040162,-233.51889341,0.00028492,5]
[401926333,1768407040172,-242.15909246,0.00028492,5]
[401926334,1768407040181,-251.11897888,0.00028492,5]
[401926336,1768407040191,-260.4103811,0.00028492,5]
[401926337,1768407040200,-270.0455652,0.00028492,5]
[401926338,1768407040210,-280.03725112,0.00028492,5]
[401926339,1768407040220,-290.39862941,0.00028492,5]
[401926340,1768407040230,-301.1433787,0.00028492,5]
[401926341,1768407040239,-350.0,0.00028493,5]
[401926342,1768407040249,-350.0,0.00028493,5]
[401926343,1768407040258,-5000.0,0.00028499,7]
[401926344,1768407040268,-77723.43145684,0.000285,7]
[401926345,1768407040279,-10000.0,0.000285,2]
[401926346,1768407040289,-1753.231323,0.000285,2]
[401926347,1768407040299,-160.0,0.00028536,3]
[401926348,1768407040309,-163.0,0.00028536,3]
[401926349,1768407040318,-7280.57066108,0.0002859,2]
[401926351,1768407040328,-334.26738813,0.00028668,24]
[401926353,1768407040338,-579.0,0.00028676,10]
[401926355,1768407040348,-948.0,0.00028676,10]
[401926358,1768407040358,-205.0,0.0002874,30]
[401926360,1768407040368,-500.0,0.00028767,15]
[401926362,1768407040379,-212.0,0.00028767,14]
[401926363,1768407040388,-5000.0,0.00028768,2]
[401926364,1768407040398,-15524.79,0.000288,2]
[401926365,1768407040407,-283.795595,0.0002882,30]
[401926366,1768407040416,-7280.57066108,0.0002899,2]
[401926367,1768407040426,-222.15167627,0.00029,3]
[401926369,1768407040436,-10000.0,0.00029,2]
[401926370,1768407040445,-50000.0,0.00029,2]
[401926372,1768407040454,-151.75,0.00029,7]
[401926374,1768407040463,-1041.66666667,0.00029,7]
[401926376,1768407040472,-1020.0,0.00029,2]
[401926378,1768407040481,-1041.66666667,0.00029,30]
[401926380,1768407040490,-7280.57066108,0.0002903,2]
[401926382,1768407040499,-290.085718,0.0002904,30]
[401926384,1768407040508,-3000.0,0.0002904,14]
[401926386,1768407040518,-500.0,0.00029041,15]
[401926388,1768407040527,-450.0,0.00029041,5]
[401926390,1768407040536,-281.07735056,0.00029041,5]
[401926392,1768407040545,-2000.0,0.00029047,7]
[401926394,1768407040554,-249.6101883,0.00029127,30]
[401926396,1768407040564,-500.0,0.00029136,120]
[401926398,1768407040573,-500.0,0.00029136,120]
[401926400,1768407040582,-500.0,0.00029136,120]
[401926402,1768407040592,-500.0,0.00029136,120]
[401926404,1768407040601,-500.0,0.00029136,120]
[401926406,1768407040611,-500.0,0.00029136,120]
[401926408,1768407040620,-500.0,0.00029136,120]
[401926409,1768407040630,-500.0,0.00029136,120]
[401926411,1768407040639,-500.0,0.00029136,120]
[401926413,1768407040649,-500.0,0.00029136,120]
[401926415,1768407040658,-500.0,0.00029136,120]
[401926417,1768407040667,-500.0,0.00029136,120]
[401926419,1768407040678,-500.0,0.00029136,120]
[401926421,1768407040687,-500.0,0.00029136,120]
[401926424,1768407040697,-500.0,0.00029136,120]
[401926425,1768407040707,-500.0,0.00029136,120]
[401926427,1768407040716,-500.0,0.00029136,120]
[401926430,1768407040726,-500.0,0.00029136,120]
[401926431,1768407040735,-500.0,0.00029136,120]
[401926433,1768407040744,-500.0,0.00029136,120]
[401926435,1768407040754,-500.0,0.00029136,120]
[401926437,1768407040764,-500.0,0.00029136,120]
[401926440,1768407040774,-500.0,0.00029136,120]
[401926441,1768407040783,-500.0,0.00029136,120]
[401926443,1768407040792,-500.0,0.00029136,120]
[401926445,1768407040801,-500.0,0.00029136,120]
[401926447,1768407040810,-500.0,0.00029136,120]
[401926449,1768407040822,-500.0,0.00029136,120]
[401926451,1768407040832,-500.0,0.00029136,120]
[401926453,1768407040841,-500.0,0.00029136,120]
[401926455,1768407040851,-500.0,0.00029136,120]
[401926457,1768407040860,-500.0,0.00029136,120]
[401926459,1768407040870,-500.0,0.00029136,120]
[401926461,1768407040880,-500.0,0.00029136,120]
[401926463,1768407040889,-500.0,0.00029136,120]
[401926465,1768407040899,-500.0,0.00029136,120]
[401926467,1768407040908,-500.0,0.00029136,120]
[401926469,1768407040918,-500.0,0.00029136,120]
[401926471,1768407040928,-500.0,0.00029136,120]
[401926473,1768407040938,-500.0,0.00029136,120]
[401926475,1768407040947,-500.0,0.00029136,120]
[401926477,1768407040956,-500.0,0.00029136,120]
[401926479,1768407040965,-500.0,0.00029136,120]
[401926481,1768407040975,-362.66,0.000292,5]
[401926483,1768407040984,-155.8641931,0.00029204,30]
[401926485,1768407040993,-1217.0711899,0.00029204,30]
[401926487,1768407041003,-7240.64501543,0.00029232,2]
[401926489,1768407041012,-334.26738813,0.00029302,25]
[401926491,1768407041022,-4466.61,0.00029315,6]
[401926493,1768407041031,-500.0,0.00029315,15]
[401926495,1768407041042,-300.0,0.00029315,2]
[401926497,1768407041052,-300.0,0.00029315,2]
[401926499,1768407041061,-300.0,0.00029315,2]
[401926501,1768407041070,-300.0,0.00029315,2]
[401926503,1768407041080,-300.0,0.00029315,2]
[401926505,1768407041090,-300.0,0.00029315,2]
[401926507,1768407041099,-300.0,0.00029315,2]
[401926509,1768407041109,-300.0,0.00029315,2]
[401926511,1768407041118,-300.0,0.00029315,2]
[401926513,1768407041128,-293.8463996,0.00029342,30]
[401926515,1768407041138,-800.0,0.00029386,2]
[401926517,1768407041148,-7280.57066108,0.0002939,2]
[401926519,1768407041158,-1457.15,0.000294,3]
[401926521,1768407041168,-152.81,0.000294,7]
[401926523,1768407041179,-1420.17,0.000294,7]
[401926525,1768407041189,-183.0,0.00029461,120]
[401926527,1768407041199,-166.0,0.00029461,120]
[401926529,1768407041208,-640.0,0.00029463,120]
[401926531,1768407041218,-182.0,0.00029463,120]
[401926533,1768407041227,-737.0,0.00029465,120]
[401926535,1768407041237,-182.0,0.00029465,120]
[401926537,1768407041247,-728.0,0.00029496,3]
[401926539,1768407041256,-728.0,0.00029496,3]
[401926541,1768407041265,-10000.0,0.000295,2]
[401926542,1768407041275,-151.0,0.000295,18]
[401926544,1768407041285,-500.0,0.00029589,15]
[401926546,1768407041295,-550.0,0.00029589,5]
[401926548,1768407041306,-2000.0,0.00029595,7]
[401926550,1768407041316,-200.0,0.000296,120]
[401926552,1768407041326,-200.0,0.000296,120]
[401926554,1768407041336,-200.0,0.000296,120]
[401926556,1768407041347,-2221.12,0.000296,14]
[401926558,1768407041357,-2000.0,0.00029628,10]
[401926560,1768407041369,-728.0,0.00029629,3]
[401926562,1768407041379,-2000.0,0.00029637,10]
[401926564,1768407041388,-2000.0,0.00029646,10]
[401926566,1768407041398,-2000.0,0.00029655,10]
[401926568,1768407041408,-2000.0,0.00029664,10]
[401926571,1768407041418,-2000.0,0.00029672,10]
[401926572,1768407041432,-2000.0,0.00029681,10]
[401926574,1768407041442,-2000.0,0.0002969,10]
[401926576,1768407041452,-755.1645066,0.00029699,30]
[401926578,1768407041462,-2000.0,0.00029699,10]
[401926580,1768407041471,-151.0,0.000297,11]
[401926582,1768407041480,-15524.79,0.000297,2]
[401926584,1768407041490,-2000.0,0.00029708,10]
[401926586,1768407041499,-7280.57066108,0.00029716,2]
[401926588,1768407041509,-2000.0,0.00029716,10]
[401926590,1768407041518,-2000.0,0.00029725,10]
[401926592,1768407041529,-500.0,0.00029726,60]
[401926594,1768407041538,-500.0,0.00029726,60]
[401926596,1768407041547,-500.0,0.00029726,60]
[401926598,1768407041556,-1102.0,0.00029726,120]
[401926600,1768407041566,-500.0,0.00029726,60]
[401926602,1768407041575,-500.0,0.00029726,60]
[401926604,1768407041585,-500.0,0.00029726,60]
[401926611,1768407041639,-151.23570132,0.00029726,60]
[401926613,1768407041649,-500.0,0.00029726,60]
[401926615,1768407041658,-500.0,0.00029726,60]
[401926617,1768407041667,-500.0,0.00029726,60]